fUSD/lending_fUSD_20241104
["ID","MTS","AMOUNT","RATE_DAILY","PERIOD"]
[341267497,1730735497326,-500.0,0.00038082,2]
[341267498,1730735497336,-500.0,0.00038082,2]
[341267499,1730735497345,-500.0,0.00038082,2]
[341267500,1730735497355,-567.62,0.00038082,2]
[341267501,1730735497364,-620.54933486,0.00038082,2]
[341267502,1730735497373,-1971.19,0.00038082,2]
[341267503,1730735497383,-1610.78,0.00038082,2]
[341267504,1730735497393,-626.21057346,0.00038082,2]
[341267505,1730735497408,-1096.83,0.00038082,2]
[341267506,1730735497417,-500.0,0.00038082,2]
[341267507,1730735497428,-249.29478617,0.00038082,2]
[341267508,1730735497439,-516.0,0.00038082,2]
[341267509,1730735497449,-527.03,0.00038082,2]
[341267510,1730735497458,-680.27,0.00038082,2]
[341267511,1730735497468,-207.01689001,0.00038082,2]
[341267512,1730735497478,-568.1,0.00038082,2]
[341267513,1730735497490,-630.31,0.00038082,2]
[341267514,1730735497499,-511.55,0.00038082,2]
[341267515,1730735497509,-879.99,0.00038082,2]
[341267516,1730735497519,-500.0,0.00038082,2]
[341267517,1730735497529,-1000.0,0.00038082,30]
[341267518,1730735497539,-860.12,0.00038082,2]
[341267519,1730735497548,-678.21,0.00038082,2]
[341267520,1730735497558,-777.65,0.00038082,2]
[341267521,1730735497569,-500.0,0.00038082,2]
[341267522,1730735497578,-538.81446081,0.00038082,2]
[341267523,1730735497589,-512.81,0.00038082,2]
[341267524,1730735497600,-1976.03,0.00038082,2]
[341267525,1730735497612,-977.14,0.00038082,2]
[341267526,1730735497622,-500.0,0.00038082,2]
[341267527,1730735497632,-500.0,0.00038082,2]
[341267528,1730735497641,-622.99,0.00038082,2]
[341267529,1730735497652,-500.0,0.00038082,2]
[341267530,1730735497662,-712.32,0.00038082,2]
[341267531,1730735497674,-1115.68,0.00038082,2]
[341267532,1730735497684,-500.0,0.00038082,2]
[341267533,1730735497694,-500.0,0.00038082,2]
[341267534,1730735497703,-500.0,0.00038082,2]
[341267535,1730735497714,-808.98,0.00038082,2]
[341267536,1730735497724,-500.0,0.00038082,2]
[341267537,1730735497733,-1426.9,0.00038082,2]
[341267538,1730735497744,-1323.81,0.00038082,2]
[341267539,1730735497753,-666.03,0.00038082,2]
[341267540,1730735497763,-839.44,0.00038082,2]
[341267541,1730735497775,-500.0,0.00038082,2]
[341267542,1730735497784,-500.0,0.00038082,2]
[341267543,1730735497794,-500.0,0.00038082,2]
[341267544,1730735497804,-500.0,0.00038082,2]
[341267545,1730735497814,-500.0,0.00038082,2]
[341267546,1730735497824,-737.61,0.00038082,2]
[341267547,1730735497834,-500.0,0.00038082,2]
[341267548,1730735497844,-500.0,0.00038082,2]
[341267549,1730735497854,-628.78,0.00038082,2]
[341267550,1730735497863,-753.23,0.00038082,2]
[341267551,1730735497873,-500.0,0.00038082,2]
[341267552,1730735497882,-342.19356513,0.00038082,2]
[341267553,1730735497892,-512.34,0.00038082,2]
[341267554,1730735497903,-690.94,0.00038082,2]
[341267555,1730735497912,-1122.64,0.00038082,2]
[341267556,1730735497922,-956.46,0.00038082,2]
[341267557,1730735497932,-500.0,0.00038082,2]
[341267558,1730735497942,-500.0,0.00038082,2]
[341267559,1730735497952,-1420.89,0.00038082,2]
[341267560,1730735497961,-705.19,0.00038082,2]
[341267561,1730735497971,-500.0,0.00038082,2]
[341267562,1730735497981,-767.22,0.00038082,2]
[341267563,1730735497991,-500.0,0.00038082,2]
[341267564,1730735498002,-869.5,0.00038082,2]
[341267565,1730735498012,-712.63,0.00038082,2]
[341267566,1730735498021,-937.08,0.00038082,2]
[341267567,1730735498031,-764.15,0.00038082,2]
[341267568,1730735498040,-1294.05,0.00038082,2]
[341267569,1730735498050,-510.62,0.00038082,2]
[341267570,1730735498059,-524.31,0.00038082,2]
[341267571,1730735498069,-500.0,0.00038082,2]
[341267572,1730735498078,-1118.2,0.00038082,2]
[341267573,1730735498089,-711.3,0.00038082,2]
[341267574,1730735498099,-500.0,0.00038082,2]
[341267575,1730735498108,-500.0,0.00038082,2]
[341267576,1730735498118,-1519.0,0.00038082,2]
[341267577,1730735498128,-500.0,0.00038082,2]
[341267578,1730735498137,-500.0,0.00038082,2]
[341267579,1730735498147,-500.0,0.00038082,2]
[341267580,1730735498157,-544.05,0.00038082,2]
[341267581,1730735498167,-1126.44,0.00038082,2]
[341267582,1730735498176,-619.57738776,0.00038082,2]
[341267583,1730735498186,-500.0,0.00038082,2]
[341267584,1730735498196,-500.0,0.00038082,2]
[341267585,1730735498206,-500.0,0.00038082,2]
[341267586,1730735498215,-1288.14,0.00038082,2]
[341267587,1730735498226,-543.83,0.00038082,2]
[341267588,1730735498236,-636.36,0.00038082,2]
[341267589,1730735498247,-1218.15,0.00038082,2]
[341267590,1730735498256,-500.0,0.00038082,2]
[341267591,1730735498267,-1259.81,0.00038082,2]
[341267592,1730735498277,-1651.88,0.00038082,2]
[341267593,1730735498399,-319.99,0.00038082,2]
[341267594,1730735498409,-500.0,0.00038082,2]
[341267595,1730735498419,-500.0,0.00038082,2]
[341267596,1730735498428,-1360.92,0.00038082,2]
[341267597,1730735498438,-912.89,0.00038082,2]
[341267598,1730735498447,-500.0,0.00038082,2]
[341267599,1730735498457,-500.0,0.00038082,2]
[341267600,1730735498467,-500.0,0.00038082,2]
[341267601,1730735498476,-719.39,0.00038082,2]
[341267602,1730735498485,-500.0,0.00038082,2]
[341267603,1730735498495,-704.43,0.00038082,2]
[341267604,1730735498505,-669.63,0.00038082,2]
[341267605,1730735498515,-500.0,0.00038082,2]
[341267606,1730735498525,-529.69,0.00038082,2]
[341267607,1730735498534,-500.0,0.00038082,2]
[341267608,1730735498544,-500.0,0.00038082,2]
[341267609,1730735498554,-500.0,0.00038082,2]
[341267610,1730735498565,-500.0,0.00038082,2]
[341267611,1730735498574,-1802.68,0.00038082,2]
[341267612,1730735498584,-500.0,0.00038082,2]
[341267613,1730735498594,-500.0,0.00038082,2]
[341267614,1730735498604,-500.0,0.00038082,2]
[341267615,1730735498614,-500.0,0.00038082,2]
[341267616,1730735498624,-500.0,0.00038082,2]
[341267617,1730735498634,-687.5,0.00038082,2]
[341267618,1730735498643,-1321.04,0.00038082,2]
[341267619,1730735498653,-909.72,0.00038082,2]
[341267620,1730735498663,-500.0,0.00038082,2]
[341267621,1730735498673,-500.0,0.00038082,2]
[341267622,1730735498682,-500.0,0.00038082,2]
[341267623,1730735498692,-879.57,0.00038082,2]
[341267624,1730735498702,-500.0,0.00038082,2]
[341267625,1730735498712,-571.76,0.00038082,2]
[341267626,1730735498723,-500.0,0.00038082,2]
[341267627,1730735498733,-500.0,0.00038082,2]
[341267628,1730735498743,-534.69,0.00038082,2]
[341267629,1730735498753,-500.0,0.00038082,2]
[341267630,1730735498763,-500.0,0.00038082,2]
[341267631,1730735498772,-939.96,0.00038082,2]
[341267632,1730735498782,-500.0,0.00038082,2]
[341267633,1730735498792,-980.66,0.00038082,2]
[341267634,1730735498802,-500.0,0.00038082,2]
[341267635,1730735498812,-500.0,0.00038082,2]
[341267636,1730735498822,-546.11,0.00038082,2]
[341267637,1730735498832,-500.0,0.00038082,2]
[341267638,1730735498842,-511.22,0.00038082,2]
[341267639,1730735498852,-539.62259091,0.00038082,2]
[341267640,1730735498861,-500.0,0.00038082,2]
[341267641,1730735498871,-505.5,0.00038082,2]
[341267642,1730735498881,-480.10481478,0.00038082,2]
[341267643,1730735498891,-500.0,0.00038082,2]
[341267644,1730735498900,-984.46,0.00038082,2]
[341267645,1730735498910,-614.73,0.00038082,2]
[341267646,1730735498919,-500.0,0.00038082,2]
[341267647,1730735498928,-602.48,0.00038082,2]
[341267648,1730735498938,-500.0,0.00038082,2]
[341267649,1730735498947,-988.32,0.00038082,2]
[341267650,1730735498957,-500.0,0.00038082,2]
[341267651,1730735498967,-631.52,0.00038082,2]
[341267652,1730735498977,-553.74,0.00038082,2]
[341267653,1730735498987,-988.27,0.00038082,2]
[341267654,1730735498998,-769.98,0.00038082,2]
[341267655,1730735499009,-500.0,0.00038082,2]
[341267656,1730735499018,-500.0,0.00038082,2]
[341267657,1730735499028,-500.0,0.00038082,2]
[341267658,1730735499038,-1956.97,0.00038082,2]
[341267659,1730735499048,-500.0,0.00038082,2]
[341267660,1730735499058,-545.33111083,0.00038082,2]
[341267661,1730735499067,-500.0,0.00038082,2]
[341267662,1730735499077,-250.0,0.00038082,2]
[341267663,1730735499087,-566.39,0.00038082,2]
[341267664,1730735499097,-1694.4,0.00038082,2]
[341267665,1730735499107,-500.0,0.00038082,2]
[341267666,1730735499117,-500.0,0.00038082,2]
[341267667,1730735499126,-500.0,0.00038082,2]
[341267668,1730735499136,-500.0,0.00038082,2]
[341267669,1730735499145,-515.3,0.00038082,2]
[341267670,1730735499154,-500.0,0.00038082,2]
[341267671,1730735499163,-236.26171585,0.00038082,2]
[341267672,1730735499172,-879.85,0.00038082,2]
[341267673,1730735499181,-652.97,0.00038082,2]
[341267674,1730735499191,-689.03,0.00038082,2]
[341267675,1730735499200,-500.0,0.00038082,2]
[341267676,1730735499212,-500.0,0.00038082,2]
[341267677,1730735499232,-500.0,0.00038082,2]
[341267678,1730735499248,-777.65,0.00038082,2]
[341267679,1730735499266,-500.0,0.00038082,2]
[341267680,1730735499288,-500.0,0.00038082,2]
[341267681,1730735499306,-500.0,0.00038082,2]
[341267682,1730735499324,-500.0,0.00038082,2]
[341267683,1730735499343,-609.2,0.00038082,2]
[341267684,1730735499358,-1141.77,0.00038082,2]
[341267685,1730735499375,-815.25,0.00038082,2]
[341267686,1730735499395,-1247.49,0.00038082,2]
[341267687,1730735499414,-500.0,0.00038082,2]
[341267688,1730735499428,-500.0,0.00038082,2]
[341267689,1730735499448,-611.47,0.00038082,2]
[341267690,1730735499464,-500.0,0.00038082,2]
[341267691,1730735499481,-877.23,0.00038082,2]
[341267692,1730735499498,-1538.63,0.00038082,2]
[341267693,1730735499512,-1051.45,0.00038082,2]
[341267694,1730735499528,-500.0,0.00038082,2]
[341267695,1730735499544,-500.0,0.00038082,2]
[341267696,1730735499559,-4150.77,0.00038082,2]
[341267697,1730735499574,-476.15304112,0.00038082,2]
[341267698,1730735499589,-745.46,0.00038082,2]
[341267699,1730735499604,-1876.8,0.00038082,2]
[341267700,1730735499619,-1151.0,0.00038082,2]
[341267701,1730735499635,-1770.42,0.00038082,2]
[341267702,1730735499650,-510.09,0.00038082,2]
[341267703,1730735499665,-522.29,0.00038082,2]
[341267704,1730735499680,-958.22,0.00038082,2]
[341267705,1730735499694,-1127.16,0.00038082,2]
[341267706,1730735499709,-500.0,0.00038082,2]
[341267707,1730735499724,-865.69,0.00038082,2]
[341267708,1730735499738,-500.0,0.00038082,2]
[341267709,1730735499753,-500.0,0.00038082,2]
[341267710,1730735499769,-1128.13,0.00038082,2]
[341267711,1730735499783,-500.0,0.00038082,2]
[341267712,1730735499798,-1045.13,0.00038082,2]
[341267713,1730735499813,-531.53,0.00038082,2]
[341267714,1730735499828,-500.0,0.00038082,2]
[341267715,1730735499843,-2026.72,0.00038082,2]
[341267716,1730735499857,-1098.81,0.00038082,2]
[341267717,1730735499872,-250.0,0.00038082,2]
[341267718,1730735499887,-520.4,0.00038082,2]
[341267719,1730735499902,-500.0,0.00038082,2]
[341267720,1730735499917,-500.0,0.00038082,2]
[341267721,1730735499932,-519.04,0.00038082,2]
[341267722,1730735499947,-500.0,0.00038082,2]
[341267723,1730735499962,-500.0,0.00038082,2]
[341267724,1730735499977,-627.52,0.00038082,2]
[341267725,1730735499992,-587.36,0.00038082,2]
[341267726,1730735500010,-500.0,0.00038082,2]
[341267727,1730735500026,-500.0,0.00038082,2]
[341267728,1730735500041,-2121.93,0.00038082,2]
[341267729,1730735500056,-500.0,0.00038082,2]
[341267730,1730735500071,-582.71,0.00038082,2]
[341267731,1730735500087,-500.0,0.00038082,2]
[341267732,1730735500103,-1427.63,0.00038082,2]
[341267733,1730735500117,-791.14,0.00038082,2]
[341267734,1730735500133,-1116.56,0.00038082,2]
[341267735,1730735500148,-1093.28,0.00038082,2]
[341267736,1730735500163,-2018.13,0.00038082,2]
[341267737,1730735500180,-500.0,0.00038082,2]
[341267738,1730735500194,-500.0,0.00038082,2]
[341267739,1730735500210,-1687.58,0.00038082,2]
[341267740,1730735500229,-500.0,0.00038082,2]
[341267741,1730735500245,-1104.45,0.00038082,2]
[341267742,1730735500260,-911.86,0.00038082,2]
[341267743,1730735500276,-547.12996258,0.00038082,2]
[341267744,1730735500292,-835.19,0.00038082,2]
[341267745,1730735500306,-500.0,0.00038082,2]
[341267746,1730735500321,-878.68,0.00038082,2]
[341267747,1730735500340,-1098.84,0.00038082,2]
[341267748,1730735500354,-500.0,0.00038082,2]
[341267749,1730735500370,-1310.74,0.00038082,2]
[341267750,1730735500385,-2183.79,0.00038082,2]
[341267751,1730735500402,-500.0,0.00038082,2]
[341267752,1730735500417,-820.36,0.00038082,2]
[341267753,1730735500432,-515.02,0.00038082,2]
[341267754,1730735500446,-580.08169486,0.00038082,2]
[341267755,1730735500461,-500.0,0.00038082,2]
[341267756,1730735500621,-500.0,0.00038082,2]
[341267757,1730735500632,-500.0,0.00038082,2]
[341267758,1730735500641,-500.0,0.00038082,2]
[341267759,1730735500651,-500.0,0.00038082,2]
[341267760,1730735500660,-500.0,0.00038082,2]
[341267761,1730735500671,-500.0,0.00038082,2]
[341267762,1730735500680,-1708.91,0.00038082,2]
[341267763,1730735500690,-544.98,0.00038082,2]
[341267764,1730735500700,-445.16281799,0.00038082,2]
[341267765,1730735500710,-660.53,0.00038082,2]
[341267766,1730735500720,-500.0,0.00038082,2]
[341267767,1730735500729,-564.44,0.00038082,2]
[341267768,1730735500739,-850.52,0.00038082,2]
[341267769,1730735500752,-752.59,0.00038082,2]
[341267770,1730735500762,-500.0,0.00038082,2]
[341267771,1730735500773,-1296.67,0.00038082,2]
[341267772,1730735500782,-1584.46,0.00038082,2]
[341267773,1730735500792,-1066.3,0.00038082,2]
[341267774,1730735500801,-1582.17,0.00038082,2]
[341267775,1730735500811,-500.0,0.00038082,2]
[341267776,1730735500820,-500.0,0.00038082,2]
[341267777,1730735500830,-500.0,0.00038082,2]
[341267778,1730735500839,-500.0,0.00038082,2]
[341267779,1730735500849,-500.0,0.00038082,2]
[341267780,1730735500858,-500.0,0.00038082,2]
[341267781,1730735500868,-1042.76,0.00038082,2]
[341267782,1730735500878,-1058.38,0.00038082,2]
[341267783,1730735500888,-505.09,0.00038082,2]
[341267784,1730735500898,-200.0,0.00038082,2]
[341267785,1730735500908,-913.46,0.00038082,2]
[341267786,1730735500918,-2146.82,0.00038082,2]
[341267787,1730735500929,-766.26,0.00038082,2]
[341267788,1730735500939,-1191.45,0.00038082,2]
[341267789,1730735500948,-500.0,0.00038082,2]
[341267790,1730735500960,-500.0,0.00038082,2]
[341267791,1730735500970,-500.0,0.00038082,2]
[341267792,1730735500980,-500.0,0.00038082,2]
[341267793,1730735500990,-609.71,0.00038082,2]
[341267794,1730735501002,-938.94,0.00038082,2]
[341267795,1730735501012,-734.64,0.00038082,2]
[341267796,1730735501022,-500.0,0.00038082,2]
[341267797,1730735501032,-300.0,0.00038082,2]
[341267798,1730735501043,-530.41,0.00038082,2]
[341267799,1730735501053,-500.0,0.00038082,2]
[341267800,1730735501063,-1127.04,0.00038082,2]
[341267801,1730735501073,-654.01,0.00038082,2]
[341267802,1730735501083,-3340.62,0.00038082,2]
[341267803,1730735501093,-500.0,0.00038082,2]
[341267804,1730735501103,-500.0,0.00038082,2]
[341267805,1730735501113,-735.14,0.00038082,2]
[341267806,1730735501122,-10593.24,0.00038082,2]
[341267807,1730735501131,-500.0,0.00038082,2]
[341267808,1730735501141,-528.03,0.00038082,2]
[341267809,1730735501151,-1246.62,0.00038082,2]
[341267810,1730735501161,-3005.2,0.00038082,2]
[341267811,1730735501171,-500.0,0.00038082,2]
[341267812,1730735501180,-558.26,0.00038082,2]
[341267813,1730735501190,-656.86,0.00038082,2]
[341267814,1730735501200,-625.73,0.00038082,2]
[341267815,1730735501209,-500.0,0.00038082,2]
[341267816,1730735501219,-1000.0,0.00038082,2]
[341267817,1730735501229,-2616.04,0.00038082,2]
[341267818,1730735501238,-3461.86,0.00038082,2]
[341267819,1730735501257,-500.0,0.00038082,2]
[341267820,1730735501266,-1222.7,0.00038082,2]
[341267821,1730735501275,-514.78,0.00038082,2]
[341267822,1730735501285,-500.0,0.00038082,2]
[341267823,1730735501297,-500.0,0.00038082,2]
[341267824,1730735501307,-500.0,0.00038082,2]
[341267825,1730735501316,-954.74,0.00038082,2]
[341267826,1730735501325,-692.32,0.00038082,2]
[341267827,1730735501335,-596.33,0.00038082,2]
[341267828,1730735501345,-500.0,0.00038082,2]
[341267829,1730735501354,-1916.99,0.00038082,2]
[341267830,1730735501363,-255.746573,0.00038082,7]
[341267831,1730735501374,-158.91,0.00038103,2]
[341267832,1730735501383,-159.56,0.00038124,2]
[341267833,1730735501392,-167.0,0.00038242,2]
[341267834,1730735501403,-152.0,0.0003829,4]
[341267835,1730735501412,-935.12,0.000383,14]
[341267836,1730735501422,-150.0,0.00038355,30]
[341267837,1730735501431,-500.0,0.00038355,2]
[341267838,1730735501440,-519.87,0.00038355,2]
[341267839,1730735501450,-619.75223068,0.00038355,2]
[341267840,1730735501460,-500.0,0.00038355,2]
[341267841,1730735501469,-500.0,0.00038355,2]
[341267842,1730735501480,-500.0,0.00038355,2]
[341267843,1730735501489,-500.0,0.00038355,2]
[341267844,1730735501503,-500.0,0.00038355,2]
[341267845,1730735501512,-500.0,0.00038355,2]
[341267846,1730735501521,-500.0,0.00038355,2]
[341267847,1730735501531,-500.0,0.00038355,2]
[341267848,1730735501540,-520.94,0.00038355,2]
[341267849,1730735501549,-500.0,0.00038355,2]
[341267850,1730735501559,-500.0,0.00038355,2]
[341267851,1730735501568,-575.99,0.00038355,2]
[341267852,1730735501578,-500.0,0.00038355,2]
[341267853,1730735501586,-500.0,0.00038355,2]
[341267854,1730735501596,-500.0,0.00038355,2]
[341267855,1730735501607,-500.0,0.00038355,2]
[341267856,1730735501616,-500.0,0.00038355,2]
[341267857,1730735501625,-549.42,0.00038355,2]
[341267858,1730735501635,-500.0,0.00038356,2]
[341267859,1730735501644,-500.0,0.00038356,2]
[341267860,1730735501654,-678.77,0.00038356,2]
[341267861,1730735501663,-500.0,0.00038356,2]
[341267862,1730735501673,-181.98143971,0.00038356,2]
[341267863,1730735501683,-500.0,0.00038356,2]
[341267864,1730735501692,-500.0,0.00038356,2]
[341267865,1730735501702,-500.0,0.00038356,2]
[341267866,1730735501712,-595.97,0.00038356,2]
[341267867,1730735501722,-500.0,0.00038356,2]
[341267868,1730735501732,-562.46,0.00038356,2]
[341267869,1730735501746,-845.59,0.00038356,2]
[341267870,1730735501755,-500.0,0.00038356,2]
[341267871,1730735501765,-500.0,0.00038356,2]
[341267872,1730735501774,-407.12502158,0.00038356,2]
[341267873,1730735501784,-750.1,0.00038356,2]
[341267874,1730735501794,-500.0,0.00038356,2]
[341267875,1730735501803,-500.0,0.00038356,2]
[341267876,1730735501814,-500.0,0.00038356,2]
[341267877,1730735501823,-500.0,0.00038356,2]
[341267878,1730735501833,-567.62,0.00038356,2]
[341267879,1730735501843,-1971.19,0.00038356,2]
[341267880,1730735501853,-1610.78,0.00038356,2]
[341267881,1730735501862,-1096.83,0.00038356,2]
[341267882,1730735501872,-500.0,0.00038356,2]
[341267883,1730735501882,-516.0,0.00038356,2]
[341267884,1730735501891,-527.03,0.00038356,2]
[341267885,1730735501901,-680.27,0.00038356,2]
[341267886,1730735501911,-568.1,0.00038356,2]
[341267887,1730735501921,-630.31,0.00038356,2]
[341267888,1730735501930,-879.99,0.00038356,2]
[341267889,1730735501940,-500.0,0.00038356,2]
[341267890,1730735501950,-511.55,0.00038356,2]
[341267891,1730735501959,-1000.0,0.00038356,30]
[341267892,1730735501969,-860.12,0.00038356,2]
[341267893,1730735501978,-678.21,0.00038356,2]
[341267894,1730735501987,-777.65,0.00038356,2]
[341267895,1730735502000,-500.0,0.00038356,2]
[341267896,1730735502010,-512.81,0.00038356,2]
[341267897,1730735502020,-1976.03,0.00038356,2]
[341267898,1730735502030,-977.14,0.00038356,2]
[341267899,1730735502039,-500.0,0.00038356,2]
[341267900,1730735502049,-500.0,0.00038356,2]
[341267901,1730735502059,-622.99,0.00038356,2]
[341267902,1730735502068,-500.0,0.00038356,2]
[341267903,1730735502078,-712.32,0.00038356,2]
[341267904,1730735502088,-1115.68,0.00038356,2]
[341267905,1730735502097,-500.0,0.00038356,2]
[341267906,1730735502107,-500.0,0.00038356,2]
[341267907,1730735502117,-500.0,0.00038356,2]
[341267908,1730735502126,-808.98,0.00038356,2]
[341267909,1730735502136,-500.0,0.00038356,2]
[341267910,1730735502145,-1426.9,0.00038356,2]
[341267911,1730735502155,-1323.81,0.00038356,2]
[341267912,1730735502164,-1500.0,0.00038356,2]
[341267913,1730735502174,-666.03,0.00038356,2]
[341267914,1730735502185,-839.44,0.00038356,2]
[341267915,1730735502195,-500.0,0.00038356,2]
[341267916,1730735502204,-500.0,0.00038356,2]
[341267917,1730735502214,-500.0,0.00038356,2]
[341267918,1730735502223,-500.0,0.00038356,2]
[341267919,1730735502233,-500.0,0.00038356,2]
[341267920,1730735502244,-737.61,0.00038356,2]
[341267921,1730735502253,-500.0,0.00038356,2]
[341267922,1730735502263,-500.0,0.00038356,2]
[341267923,1730735502272,-628.78,0.00038356,2]
[341267924,1730735502282,-753.23,0.00038356,2]
[341267925,1730735502291,-500.0,0.00038356,2]
[341267926,1730735502301,-512.34,0.00038356,2]
[341267927,1730735502311,-690.94,0.00038356,2]
[341267928,1730735502320,-1122.64,0.00038356,2]
[341267929,1730735502330,-956.46,0.00038356,2]
[341267930,1730735502339,-500.0,0.00038356,2]
[341267931,1730735502454,-500.0,0.00038356,2]
[341267932,1730735502464,-1420.89,0.00038356,2]
[341267933,1730735502473,-705.19,0.00038356,2]
[341267934,1730735502482,-500.0,0.00038356,2]
[341267935,1730735502493,-767.22,0.00038356,2]
[341267936,1730735502503,-500.0,0.00038356,2]
[341267937,1730735502513,-869.5,0.00038356,2]
[341267938,1730735502523,-712.63,0.00038356,2]
[341267939,1730735502533,-937.08,0.00038356,2]
[341267940,1730735502543,-764.15,0.00038356,2]
[341267941,1730735502554,-1294.05,0.00038356,2]
[341267942,1730735502566,-510.62,0.00038356,2]
[341267943,1730735502576,-524.31,0.00038356,2]
[341267944,1730735502586,-527.49165467,0.00038356,2]
[341267945,1730735502596,-1118.2,0.00038356,2]
[341267946,1730735502606,-711.3,0.00038356,2]
[341267947,1730735502616,-500.0,0.00038356,2]
[341267948,1730735502625,-500.0,0.00038356,2]
[341267949,1730735502635,-1519.0,0.00038356,2]
[341267950,1730735502645,-500.0,0.00038356,2]
[341267951,1730735502655,-500.0,0.00038356,2]
[341267952,1730735502664,-500.0,0.00038356,2]
[341267953,1730735502673,-1126.44,0.00038356,2]
[341267954,1730735502682,-544.05,0.00038356,2]
[341267955,1730735502692,-500.0,0.00038356,2]
[341267956,1730735502702,-500.0,0.00038356,2]
[341267957,1730735502712,-500.0,0.00038356,2]
[341267958,1730735502721,-1288.14,0.00038356,2]
[341267959,1730735502731,-543.83,0.00038356,2]
[341267960,1730735502741,-636.36,0.00038356,2]
[341267961,1730735502751,-1218.15,0.00038356,2]
[341267962,1730735502760,-500.0,0.00038356,2]
[341267963,1730735502770,-1259.81,0.00038356,2]
[341267964,1730735502779,-1651.88,0.00038356,2]
[341267965,1730735502789,-319.99,0.00038356,2]
[341267966,1730735502799,-500.0,0.00038356,2]
[341267967,1730735502808,-500.0,0.00038356,2]
[341267968,1730735502818,-1360.92,0.00038356,2]
[341267969,1730735502828,-912.89,0.00038356,2]
[341267970,1730735502837,-500.0,0.00038356,2]
[341267971,1730735502847,-580.32352351,0.00038356,2]
[341267972,1730735502857,-500.0,0.00038356,2]
[341267973,1730735502867,-719.39,0.00038356,2]
[341267974,1730735502876,-500.0,0.00038356,2]
[341267975,1730735502886,-704.43,0.00038356,2]
[341267976,1730735502896,-669.63,0.00038356,2]
[341267977,1730735502905,-500.0,0.00038356,2]
[341267978,1730735502915,-529.69,0.00038356,2]
[341267979,1730735502925,-500.0,0.00038356,2]
[341267980,1730735502935,-500.0,0.00038356,2]
[341267981,1730735502944,-500.0,0.00038356,2]
[341267982,1730735502954,-500.0,0.00038356,2]
[341267983,1730735502965,-1802.68,0.00038356,2]
[341267984,1730735502975,-500.0,0.00038356,2]
[341267985,1730735502985,-500.0,0.00038356,2]
[341267986,1730735502996,-500.0,0.00038356,2]
[341267987,1730735503006,-500.0,0.00038356,2]
[341267988,1730735503018,-500.0,0.00038356,2]
[341267989,1730735503028,-687.5,0.00038356,2]
[341267990,1730735503038,-1321.04,0.00038356,2]
[341267991,1730735503048,-909.72,0.00038356,2]
[341267992,1730735503058,-500.0,0.00038356,2]
[341267993,1730735503067,-500.0,0.00038356,2]
[341267994,1730735503077,-500.0,0.00038356,2]
[341267995,1730735503087,-879.57,0.00038356,2]
[341267996,1730735503097,-500.0,0.00038356,2]